Cogmind - Beta 13 @@@ ROGUE MODE // 2024.04.05 @ 16:17:09 Player: bonio350 Result: Destroyed by G-34 Mercenary with Small Laser Performance ------------- Evolutions (1) 500 Regions Visited (3) 600 Robots Destroyed (14) 70 Value Destroyed (419) 419 Prototype IDs (0) 0 Alien Tech Used (0) 0 Bonus (0) 0 TOTAL SCORE: 1589 Bonus ------- None Cogmind --------- Core Integrity 0/400 Matter 255/300 Energy 85/100 System Corruption 0% Temperature Cool (6) Movement Rolling (80) Location -9/Materials Parts ------- > --- POWER (1) -------- (None) > --- PROPULSION (2) --- Wheel > --- UTILITY (4) ------ Disposable Heat Sink Small Storage Unit Visual Processing Unit Visual Processing Unit > --- WEAPON (2) ------- (None) > --- INVENTORY (8) ---- Ion Engine Faulty Heavy Ion Engine Improved Heat Sink Utility Shielding Beam Rifle Peak State ------------ > --- POWER ------------ Light Nuclear Core > --- PROPULSION ------- Aluminum Leg Aluminum Leg > --- UTILITY ---------- Disposable Heat Sink Small Storage Unit Visual Processing Unit Visual Processing Unit > --- WEAPON ----------- Beamcaster Mining Laser > --- INVENTORY -------- Ion Engine Ion Engine Heavy Ion Engine Aluminum Leg Carbon-fiber Leg Wheel Small Storage Unit Utility Shielding [Rating: 19] Favorites ----------- Power Light Nuclear Core Engine Ion Engine Power Core Light Nuclear Core Propulsion Aluminum Leg Leg Aluminum Leg Wheel Wheel Utility Small Storage Unit Device Disposable Heat Sink Storage Small Storage Unit Processor Visual Processing Unit Weapon Assault Rifle Energy Gun Beamcaster Ballistic Gun Assault Rifle Special Weapon Mining Laser Build | -11 -10 -10 -9 ------- Run | Yrd Mat Min Mat Slots Evolved 2 | . . . 2 Power . | . . . . Propulsion . | . . . . Utility 2 | . . . 2 Weapon . | . . . . Parts Attached 28 | 6 8 5 9 Power 4 | 1 1 1 1 Engine 2 | 1 . . 1 Core 2 | . 1 1 . Reactor . | . . . . Propulsion 10 | 3 2 2 3 Treads . | . . . . Leg 6 | . 2 2 2 Wheel 4 | 3 . . 1 Hover . | . . . . Flight . | . . . . Utility 5 | 1 2 . 2 Device 1 | . . . 1 Storage 2 | 1 1 . . Processor 2 | . 1 . 1 Hackware . | . . . . Protection . | . . . . Artifact . | . . . . Weapon 9 | 1 3 2 3 Energy Gun 1 | . . . 1 Energy Cannon . | . . . . Ballistic Gun 6 | 1 3 1 1 Ballistic Cannon . | . . . . Launcher . | . . . . Special Weapon 2 | . . 1 1 Impact Weapon . | . . . . Slashing Weapon . | . . . . Piercing Weapon . | . . . . Special Melee Weapon . | . . . . Unidentified Prototypes . | . . . . Parts Lost 14 | . . 3 11 Power 3 | . . 1 2 Propulsion 4 | . . . 4 Utility . | . . . . Weapon 7 | . . 2 5 Highest Loss Streak 11 | . . 2 11 To Critical Strikes 1 | . . . 1 Average Slot Usage (%) 88 | . 93 90 79 Engine 1 | . 3 . . Core 10 | . 10 13 7 Leg 19 | . 5 28 18 Wheel 5 | . 22 . . Device 2 | . . . 7 Storage 13 | . 17 14 11 Processor 12 | . 4 14 17 Ballistic Gun 17 | . 28 19 7 Special Weapon 2 | . . 1 7 Naked Turns . | . . . . Heaviest Build 18 | 11 18 13 14 Greatest Support 25 | 20 20 20 25 Greatest Overweight (x) 4 | . . . 4 Average Overweight (x) . | . . . . Largest Inventory Capacity 8 | 8 8 8 8 Average Capacity 7 | 6 8 8 8 Most Carried 8 | 4 8 8 8 Average Carried 6 | 1 5 7 7 Final Capacity 8 | 8 8 8 8 Final Carried 8 | 2 8 7 5 Class Distribution -------------------- 71% | Scavenger-Mutant 28% | Mutant Dominant Class ---------------- Mutant | -10/Materials Scavenger-Mutant | -10/Mines Scavenger-Mutant | -9/Materials Resources | -11 -10 -10 -9 ----------- Run | Yrd Mat Min Mat Matter Collected 547 | 183 193 109 62 Remotely . | . . . . Salvage Created 481 | . 257 131 93 Parts 30 | . 13 9 8 Haulers Intercepted . | . . . . Recyclers Shooed . | . . . . Parts Field Recycled . | . . . . Retrieved Matter . | . . . . Parts Self-Destructed . | . . . . Prevented . | . . . . Kills | -11 -10 -10 -9 ------- Run | Yrd Mat Min Mat Combat Hostiles Destroyed 11 | . 5 3 3 Guns 11 | . 5 3 3 Classes Destroyed 5 | . 2 . 3 Worker 1 | . . . 1 Watcher 2 | . 1 . 1 Swarmer 2 | . . . 2 Grunt 8 | . 5 3 . Sentry 1 | . . . 1 Best Kill Streak 3 | . 3 2 2 Combat Bots Only 3 | . 3 2 1 Max Kills in Single Turn 1 | . 1 1 1 Gunslinging . | . . . . Exploded . | . . . . Melee . | . . . . Uniques/NPCs Destroyed . | . . . . Combat | -11 -10 -10 -9 -------- Run | Yrd Mat Min Mat Hostile Shots Fired 225 | . 19 54 152 Missed 62 | . 4 20 38 Damage Taken 1793 | . 195 450 1148 Core 493 | . 29 60 404 Absorbed by Shields . | . . . . Core Remaining (%) 82 | 100 . 64 . Volleys Fired 71 | . 18 22 31 Largest 2 | . 2 2 2 Hottest 175 | . 40 40 175 Shots Fired 102 | . 36 34 32 Gun 100 | . 36 34 30 Cannon . | . . . . Launcher . | . . . . Special 2 | . . . 2 Kinetic 92 | . 36 34 22 Thermal 10 | . . . 10 Explosive . | . . . . Electromagnetic . | . . . . Robot Hit Streak 9 | . 9 9 5 Robot Miss Streak 3 | . 3 2 2 Penetration Max . | . . . . Secondary Targets 2 | . 1 1 . Max Gunslinging Chain 1 | . 1 1 . Shots Hit Robots 66 | . 24 24 18 Core Hits 30 | . 15 9 6 Critical Kills . | . . . . Critical Parts Destroyed . | . . . . Critical Strikes 2 | . . . 2 Burn 2 | . . . 2 Melee Attacks . | . . . . Impact . | . . . . Slashing . | . . . . Piercing . | . . . . Sneak Attacks . | . . . . Combat Hostiles . | . . . . Follow-up Attacks . | . . . . Damage Inflicted 823 | . 244 257 322 Guns 792 | . 244 257 291 Cannons . | . . . . Explosions . | . . . . Melee . | . . . . Ramming 7 | . . . 7 Kinetic 687 | . 244 257 186 Thermal 129 | . . . 129 Explosive . | . . . . Electromagnetic . | . . . . Impact . | . . . . Slashing . | . . . . Piercing . | . . . . Highest Corruption . | . . . . Average Corruption . | . . . . Corruption Purged . | . . . . Corruption Blocked . | . . . . Overload Shots . | . . . . Overflow Damage 4 | . . . 4 Projectiles 4 | . . . 4 Explosions . | . . . . Melee . | . . . . Knockbacks . | . . . . Impact . | . . . . Kinetic . | . . . . Secondary . | . . . . Self-Inflicted Damage . | . . . . Shots . | . . . . Rammed 1 | . . . 1 Targets Rammed 4 | . . . 4 Kicked 3 | . . . 3 Crushed . | . . . . Highest Temperature 89 | . 26 14 89 Average Temperature 16 | . 9 6 31 Received Heat Transfer 714 | . 114 276 324 Siege Activations . | . . . . Robots Corrupted . | . . . . Combat Hostiles . | . . . . Parts Fried . | . . . . Impact Corruptions . | . . . . Robots Melted . | . . . . Combat Hostiles . | . . . . Parts Melted 1 | . . . 1 Heat Transferred 383 | . . . 383 Parts Sabotaged . | . . . . Parts Stolen . | . . . . Parts Stripped . | . . . . Power Chain Reactions . | . . . . Alert | -11 -10 -10 -9 ------- Run | Yrd Mat Min Mat Peak Influence 197 | . 197 116 67 Initial 76 | . . 76 . Average 75 | . 111 96 27 Maximum Alert Level . | . . . . Low Security (%) 100 | 100 100 100 100 Level 1 . | . . . . Level 2 . | . . . . Level 3 . | . . . . Level 4 . | . . . . Level 5 . | . . . . High Security . | . . . . Max Security . | . . . . Squads Dispatched 2 | . 1 . 1 Investigation . | . . . . Extermination . | . . . . Reinforcement 2 | . 1 . 1 Assault . | . . . . Garrison . | . . . . Intercept . | . . . . Searches Triggered . | . . . . Construction Impeded . | . . . . Haulers Reinforced . | . . . . Active Scanning Responses . | . . . . Cargo Convoy Interrupts . | . . . . Stealth | -11 -10 -10 -9 --------- Run | Yrd Mat Min Mat Distress Signals 1 | . 1 . . Communications Jammed . | . . . . Distress Signals . | . . . . Times Spotted 24 | . 8 4 12 Peak Tracking Total 5 | . 3 2 5 Tactical Retreats . | . . . . Traps | -11 -10 -10 -9 ------- Run | Yrd Mat Min Mat Traps Triggered . | . . . . Indirectly . | . . . . Trap Hack Attempts . | . . . . Triggered . | . . . . Disarmed . | . . . . Reprogrammed . | . . . . Reused . | . . . . Traps Extracted . | . . . . Installed . | . . . . Triggered . | . . . . Machines | -11 -10 -10 -9 ---------- Run | Yrd Mat Min Mat Machines Disabled 1 | . 1 . . Max in Single Turn 1 | . 1 . . Machines Repaired . | . . . . Machines Dismantled . | . . . . Machines Sabotaged . | . . . . Overloaded Fab Kills . | . . . . Hacking | -11 -10 -10 -9 --------- Run | Yrd Mat Min Mat Machines Accessed . | . . . . Terminals . | . . . . Fabricators . | . . . . Repair Stations . | . . . . Recycling Units . | . . . . Scanalyzers . | . . . . Garrison Access . | . . . . Total Hacks . | . . . . Successful . | . . . . Failed . | . . . . Catastrophic . | . . . . Database Lockouts . | . . . . Manual . | . . . . Terminals . | . . . . Fabricators . | . . . . Repair Stations . | . . . . Recycling Units . | . . . . Scanalyzers . | . . . . Garrison Access . | . . . . Terminal Hacks . | . . . . Fabricator Hacks . | . . . . Repair Station Hacks . | . . . . Recycling Unit Hacks . | . . . . Scanalyzer . | . . . . Garrison Access Hacks . | . . . . Unauthorized Hacks . | . . . . Terminals . | . . . . Fabricators . | . . . . Repair Stations . | . . . . Recycling Units . | . . . . Scanalyzers . | . . . . Garrison Access . | . . . . Data Cores Recovered . | . . . . Used . | . . . . Hacking Detections . | . . . . Full Trace Events . | . . . . Feedback Events . | . . . . Feedback Blocked . | . . . . Robot Schematics Acquired . | . . . . Robots Built . | . . . . Authchips . | . . . . Time . | . . . . Total Robot Build Rating . | . . . . Part Schematics Acquired . | . . . . Parts Built . | . . . . Authchips . | . . . . Time . | . . . . Total Part Build Rating . | . . . . Parts Repaired . | . . . . Time . | . . . . Parts Recycled . | . . . . Recycled Matter . | . . . . Retrieved Matter . | . . . . Retrieved Components . | . . . . Parts Scanalyzed . | . . . . Part Schematics Acquired . | . . . . Parts Damaged . | . . . . Bothacking | -11 -10 -10 -9 ------------ Run | Yrd Mat Min Mat Used RIF Installer . | . . . . Robots Hacked . | . . . . Non-combat . | . . . . Combat . | . . . . Robot Hacks Applied . | . . . . Relay Couplers Released . | . . . . Fabnet Peak Effective % . | . . . . Robots Rewired . | . . . . Allies Hacked . | . . . . Hacks Repelled . | . . . . Allies | -11 -10 -10 -9 -------- Run | Yrd Mat Min Mat Total Allies 2 | . . 2 . Largest Group 2 | . . 2 2 Highest-Rated Group 39 | . . 39 39 Highest-Rated Ally 31 | . . 31 31 Total Orders . | . . . . Ally Attacks 12 | . . . 12 Total Damage 63 | . . . 63 Kills 1 | . . . 1 Allies Corrupted . | . . . . Allies Melted . | . . . . Intel | -11 -10 -10 -9 ------- Run | Yrd Mat Min Mat Robot Analysis Total . | . . . . Derelict Logs Recovered 1 | . . 1 . Drone Launches . | . . . . Drone Recoveries . | . . . . Exploration | -11 -10 -10 -9 ------------- Run | Yrd Mat Min Mat Turns Passed 966 | 52 210 441 263 Spaces Moved 648 | 45 155 310 138 Core 23 | 11 . . 12 Treads . | . . . . Legs 462 | . 26 310 126 Wheels 163 | 34 129 . . Hover . | . . . . Flight . | . . . . Fastest Speed 50 | 50 80 120 100 Average Speed 109 | 72 86 120 123 Slowest Speed 250 | 80 120 120 250 Overloaded Moves . | . . . . Propulsion Burnouts . | . . . . Robots Hopped . | . . . . Cave-ins Triggered . | . . . . Exploration Rate (%) 32 | 3 38 74 16 Regions Visited 3 Branch Regions 1 Pre-discovered Areas . | . . . . Known Exits Taken . | . . . . Unknown Exits Taken 3 | 1 1 1 . Scrap Searched . | . . . . Spaces Dug 1 | . . . 1 Terrain Destroyed 1 | . . . 1 Melee . | . . . . Projectile 1 | . . . 1 AOE . | . . . . Terrain Rammed . | . . . . Walls Destroyed . | . . . . Machines Disabled . | . . . . Actions | -11 -10 -10 -9 --------- Run | Yrd Mat Min Mat Total 800 | 63 199 348 190 Wait 20 | 6 3 8 3 Move 645 | 44 154 309 138 Hop . | . . . . Pick Up 25 | 7 12 2 4 Fast Attach 5 | . . 1 4 Attach 14 | 5 2 2 5 Detach . | . . . . Swap 9 | 1 6 2 . Drop 7 | . 4 2 1 Fire 71 | . 18 22 31 Melee . | . . . . Ram 1 | . . . 1 Kick 3 | . . . 3 Crush . | . . . . Escape Stasis . | . . . . Rewire . | . . . . Trap . | . . . . Miscellaneous . | . . . . Route ------- -11/Scrapyard -10/Materials (discovered 3 exits: *Mat / [*Min x2]) -10/Mines -9/Materials (discovered 1 exit: Min) History --------- Turn | Location | Event 29 | -11/Scrapyard | Discovered new exit (range 15) 53 | -11/Scrapyard | Entered Materials 65 | -10/Materials | Discovered new exit (range 16) 172 | -10/Materials | Discovered new exit (range 11) 207 | -10/Materials | Discovered new exit (range 16) 263 | -10/Materials | Entered Mines 620 | -10/Mines | Build established: Scavenger-Mutant 653 | -10/Mines | Learned 2 Materials zone layouts 700 | -10/Mines | Discovered new exit (range 5) 704 | -10/Mines | Entered Materials 704 | -9/Materials | Accompanied by 2 allies 704 | -9/Materials | Evolved 2 slots: Utility x2 705 | -9/Materials | Identified exit to Mines 709 | -9/Materials | Led the pair of lost Derelicts to an unsafe place 935 | -9/Materials | Core integrity fell below 50% 956 | -9/Materials | Core integrity fell below 20% 967 | -9/Materials | Destroyed by G-34 Mercenary with Small Laser Last Messages --------------- Heat Sink melted. Y-45 Defender destroyed. Critical hit (Burn: +37). Acquired Beam Rifle. Disabling or destroying stationary machines or terrain requires that a single hit meet or exceed the object's Armor value. Inspect machines by right-clicking on them, and walls via Ctrl-RMB (or as any other object in keyboard mode). Hovering the cursor over an object also shows its Armor in the Scan window. Beamcaster destroyed. Acquired Hvy. Assault Rifle. Carbon-fiber Leg destroyed. Kicked G-34 Mercenary. Aluminum Leg destroyed. Slammed into G-34 Mercenary. Hvy. Assault Rifle destroyed. Ion Engine destroyed. Map ----- +----------------------------------------------------+ | | | | | | | | | | | | | | | | | | | | | | | | | ????????????????????????????????########?????????? | | ???????????????????????????????? [ ????????? | | ????????????????????????????????? ????????? | | ????????????????????????????????? ????????? | | ?????????????????????????????????? """ ???????? | | ??????????????????????????????????T"" """????????? | | ???????????????????????????????????"" ""?????????? | | ??????????????????????????????????? ??????????? | | ?????????????????????????????????###+###?????????? | | ???????????????????????##+######## #?????????? | | ??????????????########## s #?????????? | | ??????????????? g Y=% #?????????? | | ???????????????????????# g #?????????? | | ???????????????????????# @ ####### #?????????? | | ???????????????????????# ! #?????#######??######## | | ???????????????????????# % #??????????????# # | | ???????????????????????# #??????????????# # | | ???????????????????????# *#??????????????# """ # | | ???????????????????????# #???? ########## """ # | | ???????????????????????# #??? ## T ## """ # | | ???????????????????????# # ?"" ## ## # | | ???????????????????????# # """ ## """ ####+#### | | ???????????????????????# # """ ## """ + | | ??????????############## k # "" ## """ # ##### # | | ???????? # """ ## # #####/# | | ???????? + "" ######### # | | ???????? t # "" ## # # | | ??????????##############u %# " ## # # | | ??????????????????? # # ## " + + | | ???????????????????"" # # ## """ ### """ " | | ???????????????????"" # ###+#### """ #?# """ " | | ???????????????????"" # = # """ #?# """ " | | ??????????????????? # + "" #?# | | ??????????????????? # * # """ #?####### | | ??????????????????? # ########## "" ###?????? | | ???????????????????+#### #?# ## "" # ?????? | | ??????????????????? ## ### ## " # ?????? | | ??????????????????? # ## # ?????? | +----------------------------------------------------+ Best States ------------- Heat Dissipation 28 Coolant Potential 50 Energy Generation 14 Energy Capacity 250 Matter Stores 300 Matter Capacity 300 Sight Range 18 Terrain Scan Density 10 Evasion (%) 55 Item Schematics ----------------- None Robot Schematics ------------------ None Fabricated ------------ Nothing Alien Tech Used ----------------- None Achievements -------------- None Challenges ------------ None Game ------ Seed ClaymoresMetafiberWeb Manual? 0 Play Time 00:15:29 Cumulative 3.5 hours Start 2024.04.05 @ 16:03:12 End 2024.04.05 @ 16:17:09 Sessions 1 Manual Loads 0 Difficulty Rogue Special Mode None Game No. 6 Rogue 6 Adventurer 0 Explorer 0 Win Type - Total 0 Types 0/0/0/0/0/0/0/0/0 Lore% 2 Gallery% 8 Achievement% 7 Wizard Run 0 Options --------- Layout 1 ASCII 0 Keyboard 0 Movement Mouse Keybinds 0 Fullscreen 1 Font 24/Smallcaps Map View 50x35 Zoom Use 5% Tactical HUD 0 Map Filters NONE Filters NONE Steam 1 RUN: 83f42eea-0f83-484c-8216-bfa8a6836828